bitfinex/quotes_ETHUSD_20260125
["timestamp","ask_amount","ask_price","bid_price","bid_amount"]
[1769383606485,12.316501,2805.6,2804.4,0.746]
[1769383609999,16.116501,2805.9,2804.5,13.18582054]
[1769383610200,4.69099648,2805.9,2804.5,13.18582054]
[1769383610497,13.14198968,2805.8,2804.6,1.74975335]
[1769383611190,0.001,2805.4,2804.6,1.74975335]
[1769383612598,0.001,2805.4,2804.7,0.89136092]
[1769383612770,0.001,2805.4,2804.6,2.64112216]
[1769383614305,0.001,2805.4,2804.6,14.93551821]
[1769383614466,0.001,2805.4,2804.7,13.18469115]
[1769383614675,0.001,2805.4,2804.7,14.07602302]
[1769383615093,12.316501,2806.2,2804.7,14.07602302]
[1769383618620,13.20738684,2806.2,2804.8,0.746]
[1769383618823,12.316501,2806.0,2804.9,1.4822023]
[1769383619922,12.316501,2806.0,2805.0,0.89126559]
[1769383620800,12.316501,2806.0,2804.9,1.4822023]
[1769383620801,12.316501,2805.9,2804.9,1.4822023]
[1769383621003,12.316501,2805.9,2804.8,1.63731285]
[1769383621320,12.316501,2805.9,2804.9,0.89127849]
[1769383621709,12.316501,2805.9,2804.9,0.89129451]
[1769383622216,3.8,2806.0,2804.9,13.18569056]
[1769383622386,3.8,2806.0,2805.1,12.29439605]
[1769383622593,12.316501,2806.5,2805.1,12.29439605]
[1769383622821,13.20729223,2806.5,2805.1,12.29439605]
[1769383623210,12.316501,2806.5,2805.1,12.29439605]
[1769383623519,0.001,2805.8,2805.1,12.29439605]
[1769383623688,0.001,2805.8,2805.2,0.89034783]
[1769383624087,0.001,2805.8,2805.3,0.89117028]
[1769383625018,0.001,2805.8,2805.4,0.746]
[1769383626114,0.001,2805.8,2805.5,0.89110675]
[1769383627421,12.0629633,2806.4,2805.5,0.89110675]
[1769383627422,4.69071289,2806.8,2805.5,0.89110675]
[1769383627625,12.53203459,2806.7,2805.6,0.52016581]
[1769383628126,12.0629633,2806.5,2805.4,1.63712073]
[1769383631533,12.0629633,2806.5,2805.4,13.49507924]
[1769383633575,12.0629633,2807.1,2805.4,13.49507924]
[1769383634482,12.0629633,2807.1,2805.6,11.85795851]
[1769383634791,12.0629633,2807.1,2805.8,11.85795851]
[1769383635539,0.001,2806.9,2806.0,11.85795851]
[1769383635751,0.001,2806.9,2806.1,0.746]
[1769383637664,0.001,2806.9,2806.1,1.63688758]
[1769383637871,0.001,2806.9,2805.6,0.002]
[1769383637872,11.9318911,2806.8,2805.6,0.002]
[1769383639248,11.9318911,2806.8,2805.6,0.89307448]
[1769383639943,11.9318911,2806.6,2805.6,0.002]
[1769383641779,1.20739633,2806.9,2805.6,12.15477884]
[1769383641990,0.001,2806.9,2805.8,12.15277884]
[1769383642281,0.001,2806.9,2805.6,3.56617293]
[1769383642282,11.9318911,2806.8,2805.6,0.002]
[1769383643082,12.6778911,2806.8,2805.6,0.002]
[1769383644695,11.9318911,2806.6,2805.6,0.002]
[1769383644902,11.9318911,2806.4,2805.6,0.002]
[1769383645357,3.8,2806.4,2805.6,0.002]
[1769383645500,1.28226169,2806.5,2804.8,0.89331181]
[1769383645501,11.9318911,2806.3,2804.8,0.89331181]
[1769383645813,11.9318911,2806.3,2804.9,0.89129423]
[1769383645967,11.9318911,2806.1,2804.9,1.33716585]
[1769383646167,11.9318911,2806.1,2804.9,1.33716425]
[1769383646779,12.82282786,2806.1,2804.9,0.44587162]
[1769383647262,12.82282786,2806.1,2804.8,0.002]
[1769383647778,12.82282786,2806.1,2804.8,0.00100394]
[1769383648187,12.82282786,2806.1,2805.5,0.002]
[1769383648505,12.82282786,2806.1,2804.8,7.88e-06]
[1769383655522,12.82282786,2806.1,2804.8,11.74871993]
[1769383655727,12.28259381,2805.9,2804.8,7.88e-06]
[1769383656429,13.17360528,2805.8,2804.8,7.88e-06]
[1769383657125,12.28259381,2805.6,2804.5,0.002]
[1769383658916,12.28259381,2805.4,2804.5,0.002]
[1769383659114,12.28259381,2805.2,2804.5,0.002]
[1769383659311,12.28259381,2805.0,2804.5,0.002]
[1769383661030,13.17387453,2805.0,2804.5,0.002]
[1769383661230,13.17387453,2805.0,2804.8,0.001]
[1769383661433,13.17387453,2805.0,2804.5,5.92e-06]
[1769383665416,13.17386331,2805.0,2804.5,5.92e-06]
[1769383665743,1.44021227,2804.9,2804.5,5.92e-06]
[1769383666228,3.56485076,2805.2,2804.5,5.92e-06]
[1769383666229,0.875,2805.6,2804.5,5.92e-06]
[1769383666431,12.28259381,2805.5,2804.5,5.92e-06]
[1769383667818,0.89113851,2805.4,2804.5,5.92e-06]
[1769383668241,12.28259381,2805.5,2804.5,5.92e-06]
[1769383668242,13.17372077,2805.5,2804.5,5.92e-06]
[1769383668547,0.89109127,2805.6,2804.5,11.74871797]
[1769383669740,13.17363704,2805.7,2804.5,11.74871797]
[1769383670728,13.17363704,2805.7,2804.5,12.64013102]
[1769383670942,13.17363704,2805.7,2804.5,11.74871797]
[1769383671131,13.95636392,2805.6,2804.5,13.36972845]
[1769383671741,0.89110675,2805.5,2804.5,13.36972845]
[1769383672807,0.89110675,2805.5,2804.7,0.002]
[1769383673040,13.17370056,2805.5,2804.7,0.002]
[1769383678748,12.28259381,2805.3,2804.7,0.002]
[1769383678947,12.28259381,2805.1,2804.7,0.002]
[1769383679251,12.28259381,2805.1,2804.5,5.92e-06]
[1769383680534,0.89126559,2805.0,2804.5,5.92e-06]
[1769383680721,13.1738594,2805.0,2804.5,5.92e-06]
[1769383682151,13.1738594,2805.0,2804.2,0.002]
[1769383682328,12.28259381,2804.8,2804.2,0.002]
[1769383682533,13.02959381,2804.8,2804.2,0.002]
[1769383682733,12.28259381,2804.6,2804.2,0.002]
[1769383683158,12.28259381,2804.6,2803.6,0.002]
[1769383683337,12.28259381,2804.6,2803.6,9.86e-06]
[1769383683538,13.45117679,2804.5,2803.6,9.86e-06]
[1769383684653,12.13378132,2804.3,2803.6,9.86e-06]
[1769383684852,12.88078132,2804.3,2803.6,9.86e-06]
[1769383685558,12.88078132,2804.3,2803.4,1.578e-05]
[1769383686861,12.13378132,2804.1,2803.4,1.578e-05]
[1769383687027,0.89151986,2804.2,2803.1,0.002]
[1769383687028,12.13378132,2803.9,2803.1,3.94e-06]
[1769383687228,0.747,2803.8,2802.8,0.002]
[1769383687433,0.747,2803.8,2802.8,12.67628126]
[1769383687838,1.30253012,2804.0,2802.8,12.67628126]
[1769383688054,0.747,2804.0,2802.8,12.67628126]
[1769383688758,1.63861197,2804.0,2802.8,13.56824013]
[1769383688922,12.13378132,2804.4,2802.8,13.56824013]
[1769383689123,0.001,2806.9,2803.0,12.67428126]
[1769383689124,0.89135265,2804.8,2803.0,12.67428126]
[1769383689346,0.128,2804.8,2803.2,12.67428126]
[1769383689749,12.26178132,2804.8,2803.2,12.67428126]
[1769383690055,12.13378132,2805.2,2803.4,12.67428126]
[1769383690358,13.43627872,2805.1,2803.6,12.67428126]
[1769383691149,1.3024974,2805.1,2803.8,12.67428126]
[1769383691339,0.001,2805.4,2803.8,12.67428126]
[1769383692572,0.001,2805.4,2803.8,13.42128126]
[1769383693439,0.001,2805.4,2804.0,12.67428126]
[1769383694066,12.13378132,2806.2,2804.2,12.67428126]
[1769383694440,13.1527026,2806.1,2804.2,12.67428126]
[1769383694644,1.67162499,2806.0,2804.4,12.67428126]
[1769383695255,12.13378132,2805.9,2804.4,12.67428126]
[1769383695441,13.02479279,2805.8,2804.4,0.89143892]
[1769383698060,13.02479279,2805.8,2804.2,12.67428126]
[1769383698061,13.02479279,2805.8,2804.2,0.89149792]
[1769383698264,13.02479279,2805.8,2804.1,0.89154757]
[1769383698466,11.90535911,2805.6,2804.1,2.54700263]
[1769383698639,12.65235911,2805.6,2804.1,2.54700263]
[1769383698840,12.65235911,2805.6,2803.5,12.241296]
[1769383698841,0.128,2805.3,2803.5,12.241296]
[1769383699087,11.90535911,2805.2,2803.5,12.241296]
[1769383699244,11.90535911,2805.2,2803.6,0.89170382]
[1769383699450,11.90535911,2805.0,2803.6,2.47254029]
[1769383700153,11.90535911,2805.0,2803.5,11.34956591]
[1769383700154,11.90535911,2804.8,2803.5,12.24130599]
[1769383700362,2.09459018,2805.1,2803.5,12.24130599]
[1769383700575,0.89125427,2805.1,2803.5,12.24130599]
[1769383700750,12.79661338,2805.1,2803.5,12.24130599]
[1769383706385,11.90535911,2805.1,2803.5,12.24130599]
[1769383706586,0.89121974,2805.2,2803.5,12.24130599]
[1769383707092,12.79657885,2805.2,2803.5,12.24130599]
[1769383707277,13.62898717,2805.1,2803.7,11.34956591]
[1769383707899,13.62898717,2805.1,2803.6,1.58083912]
[1769383708114,13.62898717,2805.1,2803.7,11.34956591]
[1769383709003,13.62898717,2805.1,2803.8,0.89164705]
[1769383709004,11.90535911,2804.9,2803.8,0.89164705]
[1769383709222,1.72362806,2805.1,2803.8,13.30042229]
[1769383709501,1.76617365,2805.3,2803.8,13.30042229]
[1769383709903,13.67153276,2805.3,2803.8,13.30042229]
[1769383710210,13.67153276,2805.3,2803.8,12.24121296]
[1769383711394,11.90535911,2805.5,2803.8,12.24121296]
[1769383712006,11.90535911,2805.5,2803.8,0.89164705]
[1769383712190,11.90535911,2805.3,2803.7,0.002]
[1769383712390,0.128,2805.4,2803.7,0.002]
[1769383712391,11.90535911,2805.1,2803.7,0.002]
[1769383712590,11.90535911,2804.9,2803.7,0.002]
[1769383712796,11.90535911,2804.7,2803.7,0.002]
[1769383713508,11.97009424,2804.5,2803.7,0.002]
[1769383716422,1.01931557,2804.9,2803.7,11.51843453]
[1769383716620,0.128,2804.9,2803.8,12.66827798]
[1769383717527,12.86137338,2805.0,2803.9,0.89161525]
[1769383717820,0.8912198,2805.2,2803.9,12.40804978]
[1769383718021,12.86131404,2805.2,2803.9,12.40804978]
[1769383718232,1.65540959,2805.1,2804.0,1.488205]
[1769383718620,1.65540959,2805.1,2804.0,1.52142408]
[1769383718823,1.65540959,2805.1,2804.0,1.488205]
[1769383719131,1.65540959,2805.1,2804.0,13.03837552]
[1769383719308,12.86125607,2805.4,2804.0,13.00463953]
[1769383719509,11.97009424,2805.3,2804.0,13.00463953]
[1769383719719,12.86129629,2805.2,2803.8,0.89164249]
[1769383720614,12.86129629,2805.2,2803.9,0.89160904]
[1769383720835,12.86129629,2805.2,2804.0,0.002]
[1769383722028,12.86129629,2805.2,2804.0,11.51843453]
[1769383722332,12.86129629,2805.2,2804.0,0.002]
[1769383722520,11.97009424,2805.0,2804.0,0.002]
[1769383723924,11.97009424,2804.8,2804.0,0.002]
[1769383726342,12.86144996,2804.8,2804.0,0.002]
[1769383728534,12.86142888,2804.8,2804.0,0.002]
[1769383731041,11.97009424,2804.8,2804.0,0.002]
[1769383731230,1.74084147,2804.7,2804.0,0.002]
[1769383731432,17.40840019,2804.9,2804.0,0.002]
[1769383731727,16.51709424,2804.9,2804.0,0.002]
[1769383731933,17.40839258,2804.9,2804.0,0.002]
[1769383732618,16.51709424,2804.9,2804.0,0.002]
[1769383732943,1.74083803,2804.8,2804.0,0.002]
[1769383736322,1.74083803,2804.8,2804.0,11.51843453]
[1769383736654,3.8,2804.9,2804.0,11.51843453]
[1769383737013,4.6912995,2804.9,2804.0,11.51843453]
[1769383737736,16.66139374,2804.9,2804.0,11.51843453]
[1769383739048,16.66140321,2804.9,2804.0,11.51843453]
[1769383740243,15.77009424,2804.9,2804.0,11.51843453]
[1769383740747,1.65170942,2804.8,2804.0,11.51843453]
[1769383742732,2.5430562,2804.8,2804.0,11.51843453]
[1769383743343,13.73128026,2804.8,2804.0,11.51843453]
[1769383743763,12.83993348,2804.8,2804.0,11.51843453]
[1769383745046,12.83993348,2804.8,2804.2,0.002]
[1769383745251,1.75312503,2804.7,2804.2,0.002]
[1769383748068,3.8,2804.9,2804.3,11.1263204]
[1769383749152,3.8,2804.9,2804.3,12.01779477]
[1769383749463,3.8,2804.9,2804.3,11.1263204]
[1769383749846,3.8,2804.9,2804.3,12.01780202]
[1769383750032,3.8,2804.9,2804.3,13.97631396]
[1769383750238,3.8,2804.9,2804.4,11.1263204]
[1769383751451,11.18822406,2805.4,2804.5,11.02724898]
[1769383751662,0.747,2805.4,2804.6,11.00094923]
[1769383751868,0.747,2805.4,2804.6,11.68248574]
[1769383752064,11.93522406,2805.4,2804.6,0.68153651]
[1769383754348,11.93522406,2805.4,2804.6,1.57292821]
[1769383754674,11.18822406,2805.6,2804.6,12.49674733]
[1769383754882,0.747,2805.6,2804.6,12.49674733]
[1769383755066,0.747,2805.6,2804.8,10.92381912]
[1769383755880,11.74229543,2805.6,2804.8,10.92381912]
[1769383756085,11.74229543,2805.6,2804.8,11.81514763]
[1769383756285,10.99529543,2805.6,2804.8,11.81514763]
[1769383756600,11.74229543,2805.6,2804.8,11.81514763]
[1769383756788,11.74229543,2805.6,2804.9,0.68153651]
[1769383757362,10.99529543,2805.6,2804.9,0.68153651]
[1769383757563,11.74229543,2805.6,2804.9,0.68153651]
[1769383758104,0.001,2805.9,2804.9,12.38895834]
[1769383758391,10.99529543,2805.7,2805.0,1.95851194]
[1769383758592,10.99529543,2805.7,2804.7,0.89134275]
[1769383758888,11.74229543,2805.7,2804.3,0.89146641]
[1769383759093,11.74229543,2805.7,2804.3,1.63846641]
[1769383759386,11.74229543,2805.7,2804.4,0.89344773]
[1769383759794,11.74229543,2805.7,2804.5,0.89142316]
[1769383759983,10.99529543,2805.5,2804.4,0.89345628]
[1769383760184,10.99529543,2805.5,2804.5,1.59837086]
[1769383761288,10.99529543,2805.5,2804.5,10.75388086]
[1769383761812,10.99529543,2805.5,2804.4,11.62416108]
[1769383765100,0.747,2805.7,2804.6,10.66273528]
[1769383765391,11.74229543,2805.7,2804.6,10.66273528]
[1769383765794,10.99529543,2805.7,2804.6,10.66273528]
[1769383766001,10.99529543,2805.7,2804.8,10.64069024]
[1769383767880,11.88634011,2805.7,2804.8,10.64069024]
[1769383768208,10.99529543,2805.7,2804.8,10.64069024]
[1769383768906,11.88634118,2805.7,2804.8,10.64069024]
[1769383769105,10.99529543,2805.7,2804.8,10.64069024]
[1769383769405,12.61512298,2805.7,2804.8,11.8145525]
[1769383770410,12.61512298,2805.7,2804.8,12.70587382]
[1769383770577,0.001,2805.5,2804.8,11.8145525]
[1769383770910,10.99629543,2805.5,2804.8,1.17386226]
[1769383771807,4.31192875,2805.9,2804.8,1.17386226]
[1769383771808,10.99629543,2805.9,2805.1,3.9991266]
[1769383772013,10.99629543,2805.9,2805.0,10.51309242]
[1769383772188,10.99629543,2805.9,2805.1,1.05130924]
[1769383773115,11.88728498,2805.9,2805.1,1.05130924]
[1769383773413,10.99629543,2805.9,2805.1,1.05130924]
[1769383776220,11.88727904,2805.9,2805.1,1.05130924]
[1769383776514,10.99629543,2805.9,2805.1,1.05130924]
[1769383776885,11.8872758,2805.9,2805.1,1.05130924]
[1769383777089,10.99629543,2805.9,2805.1,1.05130924]
[1769383778219,10.30642506,2805.6,2804.4,0.002]
[1769383778390,10.30642506,2805.6,2804.4,0.89345052]
[1769383778720,10.30642506,2805.6,2804.4,0.002]
[1769383779213,10.30642506,2805.6,2804.4,0.8934535]
[1769383779516,10.30642506,2805.6,2804.4,10.06773642]
[1769383779686,10.30642506,2805.6,2804.4,10.9591884]
[1769383779885,11.19753095,2805.6,2804.4,10.9591884]
[1769383780180,10.30642506,2805.6,2804.5,10.06573642]
[1769383780380,10.30642506,2805.6,2804.6,10.06773642]
[1769383780625,11.19750042,2805.6,2804.7,1.00677364]
[1769383780827,10.30642506,2805.6,2804.7,1.00677364]
[1769383781330,11.19750131,2805.6,2804.7,1.00677364]
[1769383781505,11.19750131,2805.6,2804.6,0.002]
[1769383782406,11.19750131,2805.6,2804.9,0.002]
[1769383789034,10.30642506,2805.6,2804.9,0.002]
[1769383789822,0.001,2805.7,2804.9,0.002]
[1769383790125,0.89205722,2805.7,2805.0,10.06573642]
[1769383790325,10.30642506,2805.6,2804.9,0.002]
[1769383790554,10.30642506,2805.4,2804.9,0.002]
[1769383793156,11.19756627,2805.4,2804.9,0.002]
[1769383794032,10.30642506,2805.4,2804.9,0.002]
[1769383794263,10.30642506,2805.4,2805.1,0.002]
[1769383794466,13.07366416,2805.4,2804.9,0.002]
[1769383794633,10.30642506,2805.3,2804.9,0.002]
[1769383800747,1.87609912,2805.4,2804.9,0.002]
[1769383800946,0.001,2805.7,2804.9,9.9414319]
[1769383801270,0.001,2806.4,2805.6,9.9384319]
[1769383801468,11.19824784,2806.4,2805.0,9.9384319]
[1769383801630,11.19733965,2806.2,2805.1,10.91355189]
[1769383801836,11.05242506,2806.2,2805.1,11.80478125]
[1769383802036,11.94331116,2806.2,2805.1,11.80478125]
[1769383802268,11.94331116,2806.2,2805.1,10.91355189]
[1769383802568,11.94331116,2806.2,2805.1,0.99404319]
[1769383802753,11.94331116,2806.2,2804.9,0.002]
[1769383802754,10.30642506,2806.1,2804.9,0.002]
[1769383803868,9.68808086,2805.9,2804.9,0.002]
[1769383804738,9.68808086,2805.9,2804.9,9.84775894]
[1769383805870,0.89101147,2805.8,2805.1,0.002]
[1769383806065,2.30531319,2805.8,2805.1,0.002]
[1769383806265,10.57909233,2805.8,2805.1,0.002]
[1769383808687,0.001,2805.9,2805.1,0.002]
[1769383809186,0.001,2805.9,2805.1,9.81333914]
[1769383809400,0.001,2805.9,2805.3,9.77568979]
[1769383809685,0.001,2805.9,2805.4,11.15304083]
[1769383811685,0.001,2805.9,2805.4,1.37735104]
[1769383811861,0.001,2805.9,2805.4,11.10260166]
[1769383812264,0.89182492,2806.4,2805.4,11.10260166]
[1769383812265,0.001,2806.4,2805.4,11.99373912]
[1769383812470,0.001,2806.4,2805.6,9.72425062]
[1769383814588,9.68908086,2806.4,2805.5,1.26269741]
[1769383814789,9.68808086,2806.1,2805.1,0.002]
[1769383816559,10.43369562,2805.9,2805.1,0.002]
[1769383816890,0.89094796,2806.0,2805.1,0.002]
[1769383816891,11.56615998,2805.8,2805.1,0.002]
[1769383817864,11.56615998,2805.8,2805.3,0.002]
[1769383818693,12.45718661,2805.8,2805.3,0.002]
[1769383819776,12.45718661,2805.8,2805.1,0.002]
[1769383819986,12.45718661,2805.8,2804.6,0.002]
[1769383819987,10.43369562,2805.7,2804.6,0.002]
[1769383820201,12.03581887,2805.7,2804.6,0.002]
[1769383820558,10.43369562,2805.6,2804.6,0.002]
[1769383820798,10.43369562,2805.4,2804.2,0.002]
[1769383821000,0.89110675,2805.5,2804.1,0.002]
[1769383821001,10.43369562,2805.2,2804.1,0.002]
[1769383821200,10.43369562,2805.0,2803.8,0.002]
[1769383821401,1.05616956,2805.1,2803.8,0.002]
[1769383821402,10.43369562,2804.8,2803.8,0.002]
[1769383822796,10.43369562,2804.6,2803.8,0.002]
[1769383825179,11.32509532,2804.6,2803.8,0.002]
[1769383828167,11.32504834,2804.8,2803.8,0.002]
[1769383828474,11.68157166,2804.8,2803.8,0.002]
[1769383829408,1.05616956,2805.1,2803.8,0.002]
[1769383829595,1.05616956,2805.1,2804.0,10.35715562]
[1769383829596,10.43369562,2805.1,2804.0,10.35715562]
[1769383829796,11.32493663,2805.1,2804.0,9.46557217]
[1769383831286,10.43369562,2805.1,2804.0,9.46557217]
[1769383831602,11.32483413,2805.4,2804.2,9.43920485]
[1769383831811,11.92263047,2805.3,2804.3,1.03307565]
[1769383832111,10.43469562,2804.9,2803.9,0.002]
[1769383832412,10.43469562,2804.9,2803.9,0.89361492]
[1769383833310,10.43469562,2804.9,2804.0,0.89157989]
[1769383833494,10.43469562,2804.9,2803.9,0.89359465]
[1769383833698,10.43469562,2804.9,2804.0,1.3875462]
[1769383834778,11.32599889,2804.9,2803.9,0.002]
[1769383835113,0.001,2804.9,2803.9,9.37757114]
[1769383835780,9.97536356,2804.9,2803.9,9.37757114]
[1769383838317,10.866688,2804.9,2803.9,9.37757114]
[1769383838497,1.44317573,2804.8,2803.9,9.37757114]
[1769383839007,0.001,2804.9,2803.9,10.22084322]
[1769383839197,2.37,2805.2,2804.0,9.3262409]
[1769383840193,2.37,2805.2,2804.2,9.31450569]
[1769383842198,2.37,2805.2,2804.2,10.20599842]
[1769383843213,0.001,2805.0,2804.2,10.20599842]
[1769383843511,3.56407879,2805.8,2804.6,9.26786491]
[1769383843512,12.34436356,2805.8,2804.6,9.26786491]
[1769383843706,9.97436356,2805.6,2804.6,9.26786491]
[1769383844086,9.97436356,2805.6,2804.4,9.26786491]
[1769383844486,10.86545529,2805.6,2804.4,10.15930055]
[1769383844715,10.86545529,2805.6,2804.4,11.31295257]
[1769383844716,11.06090909,2805.5,2804.4,11.31295257]
[1769383845319,11.06090909,2805.5,2804.4,10.42151693]
[1769383845514,11.06090909,2805.5,2804.4,11.31297154]
[1769383846897,11.95204416,2805.5,2804.4,1.15365202]
[1769383847092,11.06090909,2805.5,2804.4,0.89145428]
[1769383847422,11.06090909,2805.5,2804.4,10.1262973]
[1769383847718,9.97436356,2805.5,2804.4,10.1262973]
[1769383848233,9.97436356,2805.5,2804.4,10.12629284]
[1769383848234,10.86547362,2805.5,2804.4,10.12629284]
[1769383848620,9.97436356,2805.5,2804.4,10.12629284]
[1769383848924,10.86547159,2805.5,2804.4,10.12629284]
[1769383849124,9.97436356,2805.5,2804.4,10.12629284]
[1769383849332,11.41732909,2805.5,2804.5,1.36922383]
[1769383849623,12.30843657,2805.5,2804.5,1.36922383]
[1769383851226,12.30843657,2805.5,2804.2,0.89151982]
[1769383851723,12.30843657,2805.5,2804.1,1.63852728]
[1769383851912,12.30843657,2805.5,2804.1,0.747]
[1769383852109,9.97436356,2805.3,2804.1,0.747]
[1769383853132,9.97436356,2805.1,2803.9,9.70157843]
[1769383853293,11.06092012,2805.0,2804.0,0.97035784]
[1769383853643,9.97436356,2805.0,2804.0,0.97035784]
[1769383853923,9.97436356,2805.0,2803.9,0.002]
[1769383854807,9.97436356,2805.0,2804.0,0.89156726]
[1769383854994,10.86563471,2805.0,2804.3,0.002]
[1769383855310,9.97436356,2805.0,2804.3,0.002]
[1769383858121,9.97436356,2805.2,2804.3,0.002]
[1769383858435,0.001,2805.3,2804.3,8.1810129]
[1769383858636,10.30057788,2805.2,2804.3,0.90925646]
[1769383858840,10.30057788,2805.2,2804.3,0.002]
[1769383859825,9.97436356,2805.2,2804.3,7.93942886]
[1769383860412,0.001,2805.3,2804.3,7.93942886]
[1769383861202,0.001,2805.3,2804.4,0.89145628]
[1769383861930,0.001,2805.3,2804.3,8.83089291]
[1769383862108,9.97536356,2805.3,2804.3,8.83089291]
[1769383862306,9.97536356,2805.3,2804.4,0.88308929]
[1769383863262,9.97536356,2805.3,2804.5,0.89142449]
[1769383863446,9.97536356,2805.3,2804.4,0.88308929]
[1769383864001,10.86654107,2805.3,2804.4,0.88308929]
[1769383864234,10.86654107,2805.3,2804.3,0.002]
[1769383869052,9.97536356,2805.3,2804.3,0.002]
[1769383870142,0.001,2805.3,2804.3,7.59763752]
[1769383870347,8.56204548,2805.3,2804.3,0.002]
[1769383870654,0.001,2805.3,2804.3,6.60160601]
[1769383870852,8.56204548,2805.3,2804.4,0.74931059]
[1769383871047,8.56204548,2805.3,2804.3,0.002]
[1769383872026,8.56204548,2805.3,2804.4,0.89145628]
[1769383875438,8.56204548,2805.3,2804.3,7.3897268]
[1769383876773,9.45322603,2805.3,2804.3,0.002]
[1769383878683,9.45322603,2805.3,2804.5,0.002]
[1769383878857,8.57500017,2805.1,2804.5,0.002]
[1769383879060,0.001,2805.1,2804.5,0.002]
[1769383881347,0.001,2805.1,2804.5,0.89342449]
[1769383883482,0.001,2805.3,2804.6,5.37962546]
[1769383883871,8.57500017,2805.8,2804.7,5.25401871]
[1769383884068,8.57500017,2805.8,2804.9,5.25401871]
[1769383884594,8.57500017,2806.1,2804.9,5.25401871]
[1769383885592,8.57500017,2806.1,2805.0,6.05734042]
[1769383888150,0.001,2806.2,2805.0,6.05734042]
[1769383889299,0.001,2806.4,2805.2,4.82334931]
[1769383889665,0.001,2806.4,2805.4,4.74039254]
[1769383889867,0.001,2806.4,2805.6,4.74039254]
[1769383891074,0.001,2806.4,2805.6,5.48639254]
[1769383891402,8.57600017,2806.4,2805.5,0.746]
[1769383891698,0.001,2806.2,2805.6,0.89107499]
[1769383891870,0.001,2806.2,2805.7,0.5201375]
[1769383892070,8.57600017,2806.2,2805.4,0.8911086]
[1769383892395,8.57600017,2806.2,2805.5,0.89109732]
[1769383893326,8.57600017,2806.2,2805.1,5.539552]
[1769383893499,8.57600017,2806.2,2805.4,0.89112961]
[1769383893660,8.57600017,2806.2,2805.3,3.56467434]
[1769383893998,0.001,2806.2,2805.4,4.33957481]
[1769383896000,0.001,2806.2,2805.5,0.89110675]
[1769383898316,0.001,2806.2,2805.5,0.88310059]
[1769383898604,0.001,2806.2,2805.6,0.87871024]
[1769383900313,0.001,2806.2,2805.7,0.89104323]
[1769383903378,0.001,2806.2,2805.7,0.89304323]
[1769383903575,0.001,2806.2,2805.7,4.5669272]
[1769383905299,7.91359702,2806.2,2805.7,0.89304323]
[1769383905615,8.70505672,2806.2,2805.7,0.002]
[1769383905909,8.70505672,2806.2,2805.5,0.002]
[1769383906511,8.70505672,2806.2,2804.7,3.9962679]
[1769383906512,7.91259702,2806.0,2804.7,0.002]
[1769383906715,7.91259702,2805.9,2804.8,0.89131396]
[1769383907209,7.91259702,2805.9,2804.7,4.31342906]
[1769383907210,7.91259702,2805.9,2804.9,0.89128929]
[1769383907414,7.91259702,2805.7,2804.8,0.89131537]
[1769383907589,7.91259702,2805.7,2804.7,0.748]
[1769383907590,7.91259702,2805.7,2804.7,0.002]
[1769383907913,7.91259702,2805.7,2804.9,0.89129607]
[1769383908112,7.91259702,2805.7,2804.8,0.89130492]
[1769383908416,7.91259702,2805.7,2804.8,0.89132588]
[1769383908614,7.91259702,2805.5,2804.7,0.002]
[1769383910513,8.8037323,2805.5,2804.7,0.002]
[1769383910902,7.91259702,2805.5,2804.7,0.002]
[1769383913223,0.91032835,2805.6,2804.7,2.99570981]
[1769383913406,7.91259702,2805.8,2804.7,2.99570981]
[1769383914107,7.91259702,2806.1,2804.7,2.99570981]
[1769383915021,7.91259702,2806.1,2804.9,2.85744489]
[1769383915197,7.91259702,2806.1,2804.9,0.002]
[1769383915398,8.80352674,2806.1,2804.9,0.002]
[1769383915723,7.91259702,2805.9,2804.9,0.002]
[1769383917225,8.80360622,2805.9,2804.9,0.002]
[1769383918621,8.803586,2805.9,2804.9,0.002]
[1769383922198,7.91259702,2805.9,2804.9,0.002]
[1769383922393,7.91259702,2806.1,2804.9,2.40674757]
[1769383922594,7.91259702,2806.1,2805.0,2.64542233]
[1769383922826,0.001,2806.2,2805.0,2.64542233]
[1769383924336,0.001,2806.2,2805.2,2.22163311]
[1769383925611,0.001,2806.4,2805.4,2.16198918]
[1769383925917,0.001,2806.9,2805.6,2.10303178]
[1769383926126,6.52816786,2806.9,2805.6,2.10303178]
[1769383926331,6.52816786,2806.9,2805.8,0.89101147]
[1769383927250,0.001,2806.0,2805.8,0.89101147]
[1769383927448,6.52816786,2806.9,2805.8,0.89101147]
[1769383927449,6.52816786,2806.9,2805.9,0.52010742]
[1769383928204,6.52816786,2806.9,2806.0,0.89094796]
[1769383929043,6.52816786,2806.9,2805.9,1.41106484]
[1769383931864,6.52816786,2806.9,2805.9,0.52010742]
[1769383932061,6.52816786,2806.9,2805.8,0.89099481]
[1769383933413,6.52816786,2806.9,2805.6,0.89107499]
[1769383933414,7.41883171,2806.9,2805.6,0.89107499]
[1769383938255,6.52816786,2806.9,2805.6,0.89107499]
[1769383938417,6.52816786,2806.9,2805.7,1.39557867]
[1769383938616,6.52816786,2806.9,2805.9,1.39557867]
[1769383938813,0.001,2806.7,2805.9,1.39557867]
[1769383939044,0.001,2806.9,2805.9,1.39557867]
[1769383940072,0.001,2806.9,2806.1,1.29486705]
[1769383940714,0.001,2806.9,2806.0,0.89094796]
[1769383940914,0.001,2806.9,2806.1,0.57006243]
[1769383942164,0.001,2806.9,2806.2,0.89088447]
[1769383942726,6.43957742,2807.3,2806.3,1.14961221]
[1769383943527,0.89030055,2808.1,2806.3,1.14961221]
[1769383943528,6.43957742,2808.1,2806.3,1.14961221]
[1769383943831,7.17256024,2808.1,2806.5,1.10128746]
[1769383944351,6.43957742,2808.0,2806.6,0.8907575]
[1769383944727,6.43957742,2808.0,2806.6,1.94528149]
[1769383945238,6.43957742,2808.0,2806.7,1.05452399]
[1769383946522,6.43957742,2808.8,2806.9,1.00832149]
[1769383946826,7.43963621,2808.8,2807.1,0.962605]
[1769383947979,7.43963621,2808.8,2807.3,0.91740358]
[1769383948625,7.43963621,2808.8,2807.4,1.76320742]
[1769383950265,6.43957742,2808.8,2807.5,0.82855283]
[1769383950769,6.43957742,2808.8,2807.6,0.89044023]
[1769383951294,6.43957742,2808.8,2807.6,1.6753322]
[1769383951579,6.43957742,2808.8,2807.7,0.78489197]
[1769383951738,0.001,2808.6,2807.7,0.78489197]